bitfinex/quotes_ETHUSD_20251212
["timestamp","ask_amount","ask_price","bid_price","bid_amount"]
[1765554143857,2.99793,3095.3,3095.0,0.001]
[1765554144174,2.99793,3095.3,3093.3,0.1838]
[1765554144175,0.405504,3095.0,3092.7,0.06154574]
[1765554144347,0.58047529,3095.2,3092.8,0.4549]
[1765554144348,6.46245314,3094.8,3092.8,0.4549]
[1765554144674,6.46245314,3094.8,3092.7,0.06154574]
[1765554144675,0.98597929,3094.2,3092.7,0.06154574]
[1765554145143,9.69367971,3094.8,3092.7,0.51644574]
[1765554145347,3.694865,3094.6,3092.8,6.46663216]
[1765554145558,0.405504,3094.2,3092.8,3.23327987]
[1765554145758,0.45234653,3094.1,3092.7,0.06154574]
[1765554146068,0.98597929,3094.0,3092.7,0.06154574]
[1765554146276,0.98597929,3093.8,3093.7,0.002]
[1765554146479,15.02355753,3093.8,3093.7,0.002]
[1765554146649,12.72478593,3093.8,3093.7,0.002]
[1765554146835,8.40717953,3093.8,3093.7,0.002]
[1765554147036,16.93337318,3093.8,3093.7,0.002]
[1765554147236,0.05,3093.1,3092.7,0.06154574]
[1765554147467,0.05,3093.1,3092.0,1.49940361]
[1765554147468,0.405504,3092.3,3092.0,1.49940361]
[1765554147669,0.58047529,3092.4,3091.6,0.053]
[1765554147670,0.58047529,3091.9,3091.6,0.053]
[1765554147846,0.58047529,3092.3,3091.6,0.053]
[1765554148174,0.405504,3092.2,3091.6,0.053]
[1765554148335,0.98597929,3091.7,3091.6,1e-08]
[1765554148536,0.58047529,3091.7,3091.6,1e-08]
[1765554148737,4.071676,3091.7,3091.6,1e-08]
[1765554148941,3.37433305,3093.2,3091.6,1e-08]
[1765554148942,0.02256791,3093.0,3091.6,6.92399593]
[1765554149136,6.058667,3093.7,3091.6,6.92399593]
[1765554149438,30.1384,3091.7,3091.6,1e-08]
[1765554149741,8.93169765,3092.3,3091.6,1e-08]
[1765554149742,0.98597929,3092.0,3091.6,1e-08]
[1765554149956,0.05,3092.4,3091.6,1e-08]
[1765554149957,5.910459,3092.5,3091.6,1e-08]
[1765554150135,0.58047529,3092.4,3091.6,1e-08]
[1765554150342,4.327539,3092.1,3091.6,1e-08]
[1765554150612,3.743423,3092.1,3091.6,1e-08]
[1765554150767,0.58047529,3092.1,3091.6,1e-08]
[1765554150969,3.23394347,3092.2,3091.6,1e-08]
[1765554150970,0.58047529,3091.7,3091.6,1e-08]
[1765554151178,10.31401829,3091.7,3091.6,1e-08]
[1765554151474,13.633955,3092.0,3091.6,1e-08]
[1765554151644,3.565315,3092.0,3091.6,1e-08]
[1765554151976,5.927928,3093.3,3091.7,0.4549]
[1765554152179,0.38156526,3092.4,3091.6,1e-08]
[1765554152385,0.58047529,3091.9,3091.6,1e-08]
[1765554152872,13.11066996,3093.1,3091.6,1e-08]
[1765554153048,0.05,3092.9,3091.6,1e-08]
[1765554153246,2.258064,3092.0,3091.6,1e-08]
[1765554153651,0.405504,3091.1,3089.8,0.003]
[1765554153852,0.405504,3090.9,3089.8,0.003]
[1765554154144,0.98597929,3091.2,3089.8,0.003]
[1765554154360,6.541843,3090.8,3089.8,0.003]
[1765554154560,0.58047529,3090.7,3089.8,0.003]
[1765554154785,0.98597929,3090.5,3089.8,0.003]
[1765554154998,3.503736,3090.5,3089.8,0.003]
[1765554155297,0.58047529,3090.4,3089.8,0.003]
[1765554155607,0.58047529,3090.8,3089.8,0.003]
[1765554155765,10.66924875,3091.4,3089.8,0.4579]
[1765554156090,8.06143089,3092.3,3089.8,0.4579]
[1765554156397,6.851694,3091.9,3089.9,9.70905207]
[1765554156581,6.851694,3091.9,3089.9,7.06670138]
[1765554156784,0.405504,3091.8,3090.0,0.4549]
[1765554156983,0.58047529,3091.6,3090.0,0.4549]
[1765554157289,0.05,3093.3,3090.1,0.03236141]
[1765554157490,12.425756,3093.1,3090.2,0.4549]
[1765554157702,12.93159184,3093.2,3090.2,1.03537529]
[1765554157703,21.653272,3092.9,3090.2,1.03537529]
[1765554157986,3.072407,3094.1,3091.4,0.58047529]
[1765554158196,3.072407,3094.1,3091.7,8.52619365]
[1765554158197,4.78216,3094.1,3091.7,8.52619365]
[1765554158401,3.042109,3094.6,3092.3,8.52619365]
[1765554158560,0.0323342,3094.5,3091.9,16.17128625]
[1765554158760,7.203759,3094.7,3092.0,0.4549]
[1765554158976,11.247642,3094.5,3092.0,0.4549]
[1765554159177,0.58047529,3094.2,3092.0,0.4549]
[1765554159466,0.4893,3094.7,3091.7,3.23437577]
[1765554159467,23.228201,3093.6,3091.7,3.23437577]
[1765554159693,0.4893,3094.6,3091.8,9.70306226]
[1765554159861,2.577178,3094.4,3091.8,16.17178598]
[1765554160060,8.131779,3094.8,3092.2,8.52619365]
[1765554160260,9.69243488,3095.2,3092.3,0.594]
[1765554160497,3.23085335,3095.2,3092.8,8.52619365]
[1765554160701,3.23085335,3095.2,3092.6,0.405504]
[1765554160702,0.02256791,3096.2,3093.5,0.58047529]
[1765554161026,3.22872307,3097.2,3092.9,0.85261937]
[1765554161027,0.4893,3097.5,3094.6,8.52619365]
[1765554161303,0.4893,3097.5,3093.6,0.594]
[1765554161304,0.14124634,3097.4,3095.3,0.58047529]
[1765554161513,0.14124634,3097.4,3095.2,8.52619365]
[1765554161514,0.14124634,3097.4,3095.9,0.58047529]
[1765554161656,0.14124634,3097.4,3096.4,8.52619365]
[1765554161871,3.22591051,3099.9,3097.1,0.58047529]
[1765554162069,4.96641,3099.8,3097.2,0.593]
[1765554162308,2.338246,3099.8,3097.2,1.0479]
[1765554162516,12.152244,3099.6,3097.3,10.14075541]
[1765554162817,0.55641565,3099.7,3098.2,8.52619365]
[1765554162974,0.0323342,3100.5,3098.3,0.6387]
[1765554163178,12.073827,3100.3,3098.3,0.4549]
[1765554163501,18.594271,3099.8,3097.9,0.593]
[1765554163707,12.745208,3099.6,3098.0,0.4549]
[1765554163890,1.8594271,3099.7,3098.0,0.4549]
[1765554164098,5.500183,3100.2,3098.1,0.592]
[1765554164290,0.0323342,3100.3,3098.2,0.4549]
[1765554164485,2.780249,3101.0,3098.3,12.91030564]
[1765554164687,6.500226,3101.0,3098.4,8.52619365]
[1765554164897,2.325879,3101.0,3098.5,0.58047529]
[1765554165208,2.366313,3100.8,3098.6,1.54815689]
[1765554165374,2.788509,3100.6,3098.6,0.4549]
[1765554165578,2.194036,3101.4,3099.0,8.52619365]
[1765554165806,3.22404677,3101.7,3099.3,8.52619365]
[1765554165973,3.430231,3101.9,3099.4,0.405504]
[1765554166177,0.001,3102.5,3100.0,0.405504]
[1765554166389,0.001,3102.5,3100.2,0.58047529]
[1765554166595,3.130833,3102.4,3100.2,0.58047529]
[1765554166800,0.001,3102.5,3100.6,0.58047529]
[1765554167316,0.001,3102.5,3102.4,0.1838]
[1765554167514,0.001,3102.5,3101.1,0.1838]
[1765554167679,0.001,3102.5,3101.2,0.592]
[1765554167885,0.001,3102.5,3101.4,8.52619365]
[1765554168179,0.001,3103.2,3102.0,8.52619365]
[1765554168403,0.001,3103.2,3102.2,0.58047529]
[1765554168603,0.001,3103.2,3102.3,0.4549]
[1765554169482,0.001,3103.2,3102.4,0.591]
[1765554169882,0.001,3103.2,3102.5,0.4549]
[1765554170083,0.001,3103.2,3102.6,8.52619365]
[1765554170285,0.001,3103.2,3102.7,0.4855]
[1765554170513,0.001,3103.2,3102.7,3.81396058]
[1765554170819,0.001,3103.2,3102.8,0.4855]
[1765554171022,0.001,3103.2,3102.2,0.1813]
[1765554171183,0.001,3103.2,3102.7,3.22296856]
[1765554171393,0.001,3103.2,3102.7,6.44596788]
[1765554171613,0.001,3103.2,3102.7,3.22296856]
[1765554171913,0.001,3103.2,3102.6,3.22308483]
[1765554172121,0.001,3103.2,3102.7,3.22299912]
[1765554172327,6.177514,3103.1,3101.1,0.1838]
[1765554172482,6.177514,3103.1,3101.2,1.0765]
[1765554172483,4.222377,3102.9,3101.2,1.0765]
[1765554172687,14.485941,3102.5,3101.2,0.591]
[1765554172888,10.018505,3102.3,3101.2,0.591]
[1765554173090,0.98597929,3101.9,3100.2,3.22557549]
[1765554173291,0.0323342,3101.9,3100.6,3.22517245]
[1765554173622,0.45797858,3102.1,3101.1,6.44929605]
[1765554173795,0.405504,3101.8,3100.4,0.591]
[1765554173997,0.405504,3101.5,3100.4,0.591]
[1765554174188,22.32663,3101.2,3100.4,0.591]
[1765554174384,3.116568,3100.8,3100.4,0.591]
[1765554174622,3.57454658,3100.8,3100.4,0.591]
[1765554174922,0.4642,3101.6,3100.4,0.591]
[1765554175091,0.4642,3101.6,3098.5,0.05484159]
[1765554175092,0.0323342,3101.5,3099.3,0.4855]
[1765554175397,0.0323342,3101.5,3098.6,0.4855]
[1765554175398,17.47534,3100.9,3098.6,0.4855]
[1765554175597,0.405504,3101.2,3098.7,1.0765]
[1765554175896,8.388204,3100.8,3099.5,3.22629675]
[1765554176102,0.58047529,3100.7,3098.8,0.4855]
[1765554176297,0.58047529,3100.3,3098.8,0.4855]
[1765554176497,12.119001,3100.1,3098.7,0.591]
[1765554176704,0.58047529,3100.0,3098.7,0.591]
[1765554177019,0.869704,3099.9,3097.8,0.591]
[1765554177235,8.736435,3099.6,3098.0,0.4855]
[1765554177523,0.58047529,3099.9,3098.2,3.22758857]
[1765554177822,5.555255,3099.8,3098.2,3.22758857]
[1765554178028,2.203369,3099.8,3098.1,0.1813]
[1765554178223,6.45119668,3100.2,3098.1,0.1813]
[1765554178224,13.523334,3100.1,3098.2,0.4855]
[1765554178442,3.22611865,3099.7,3098.3,6.45515282]
[1765554178605,3.22543208,3100.4,3098.3,6.45515282]
[1765554178606,0.4642,3101.2,3098.4,0.58047529]
[1765554178933,0.1321,3101.9,3098.4,0.58047529]
[1765554178934,6.44932442,3101.1,3098.6,0.58047529]
[1765554179089,7.679965,3101.0,3098.4,1.06597529]
[1765554179297,9.621655,3101.0,3098.5,0.4855]
[1765554179496,0.5963,3101.9,3098.5,0.4855]
[1765554179497,3.22445426,3101.3,3098.9,0.98597929]
[1765554179737,5.056881,3101.7,3099.0,0.591]
[1765554179943,7.37436613,3101.7,3099.1,0.43777143]
[1765554180224,3.879175,3101.6,3099.1,0.43777143]
[1765554180423,3.22279158,3102.9,3100.6,0.58047529]
[1765554180723,6.44558316,3102.9,3100.7,0.591]
[1765554180852,0.001,3103.2,3101.9,8.52174626]
[1765554181062,0.001,3103.2,3102.0,1.17147529]
[1765554181220,0.001,3103.2,3102.0,0.4855]
[1765554181421,0.001,3103.2,3101.5,0.591]
[1765554181723,6.44603706,3103.2,3101.5,0.591]
[1765554181931,0.64460371,3103.1,3101.6,0.4855]
[1765554182131,2.254201,3103.0,3101.6,0.4855]
[1765554182336,0.001,3103.2,3101.6,0.4855]
[1765554182519,0.001,3103.2,3102.9,0.1813]
[1765554182717,0.001,3103.2,3102.2,16.11759395]
[1765554182718,0.001,3103.2,3102.2,9.67055637]
[1765554182920,0.001,3103.2,3102.2,6.44703758]
[1765554183170,0.001,3103.2,3102.2,3.22351879]
[1765554183356,0.001,3103.2,3102.1,0.6668]
[1765554183357,0.001,3103.2,3102.1,3.2236227]
[1765554183536,0.001,3103.2,3102.1,6.4472454]
[1765554184060,0.001,3103.2,3102.1,9.6708681]
[1765554184243,0.001,3103.2,3102.2,0.4855]
[1765554184548,0.001,3103.2,3102.1,0.1813]
[1765554184752,0.001,3103.2,3102.3,0.58047529]
[1765554184916,0.001,3103.2,3102.3,0.4855]
[1765554185118,6.94094429,3104.3,3102.3,0.4855]
[1765554185346,4.949581,3104.3,3102.3,0.4855]
[1765554185562,4.610581,3104.3,3102.3,0.4855]
[1765554185717,0.58047529,3103.7,3101.5,0.6668]
[1765554185921,0.58047529,3103.5,3101.8,6.44784285]
[1765554186121,0.58047529,3103.9,3101.8,9.67177733]
[1765554186342,8.124035,3103.6,3101.9,0.4855]
[1765554186656,6.47682488,3103.5,3102.0,6.44745324]
[1765554186823,0.64768249,3103.4,3102.0,6.44745324]
[1765554187018,0.64768249,3103.4,3101.9,3.70922696]
[1765554187019,17.800686,3103.2,3101.9,3.22380741]
[1765554187232,0.58047529,3103.2,3101.9,6.44763796]
[1765554187434,7.08876412,3102.9,3100.4,0.4855]
[1765554187635,7.08876412,3102.9,3099.7,7.08876412]
[1765554187636,7.048851,3102.5,3100.8,0.59]
[1765554187961,0.02256791,3102.6,3100.8,0.59]
[1765554188273,0.58047529,3102.2,3101.0,3.22467437]
[1765554188470,0.58047529,3102.2,3100.8,0.59]
[1765554188471,6.44745324,3102.0,3100.8,0.59]
[1765554188679,8.018693,3101.8,3100.8,3.81497206]
[1765554188976,2.86194929,3101.9,3100.8,0.59]
[1765554189181,0.0323342,3101.7,3100.8,0.59]
[1765554189473,11.940857,3101.6,3100.5,3.22527187]
[1765554189680,9.67117986,3102.0,3100.5,3.22527187]
[1765554189681,0.1329,3103.1,3100.8,6.4499484]
[1765554189877,9.854989,3102.6,3100.8,6.4499484]
[1765554190171,0.58047529,3102.1,3100.8,6.4499484]
[1765554190474,0.0323342,3102.1,3100.7,6.4501564]
[1765554190771,12.625728,3103.0,3100.7,23.21415512]
[1765554190974,12.625728,3103.0,3100.8,0.4855]
[1765554190975,2.549557,3103.0,3100.8,0.4855]
[1765554191269,1.11188249,3103.4,3100.8,0.4855]
[1765554191270,0.4642,3103.4,3100.9,2.22875769]
[1765554191457,3.22162181,3104.1,3101.8,7.08876412]
[1765554191881,3.22162181,3104.1,3101.9,0.4855]
[1765554192043,3.22162181,3104.1,3102.0,0.59]
[1765554192242,6.44324362,3104.1,3102.0,0.59]
[1765554192467,0.64432436,3104.0,3102.2,9.67055637]
[1765554192673,3.22175327,3103.9,3102.2,9.67055637]
[1765554192972,14.320485,3103.7,3102.3,0.59]
[1765554193172,10.12945981,3103.9,3102.3,0.59]
[1765554193173,3.68595327,3103.9,3102.3,0.59]
[1765554193376,3.22175327,3103.9,3102.4,0.4855]
[1765554193573,9.66081329,3103.8,3102.4,0.4855]
[1765554193774,7.09010299,3103.9,3102.5,0.59]
[1765554193775,0.64659645,3103.9,3102.5,0.59]
[1765554193972,0.0323342,3103.8,3102.5,0.59]
[1765554194178,3.286,3103.7,3102.5,0.59]
[1765554194355,7.616922,3103.3,3101.5,0.4855]
[1765554194567,13.413557,3103.1,3102.1,7.03721949]
[1765554194748,12.726557,3103.1,3102.1,3.81359679]
[1765554194947,2.325938,3103.1,3102.1,7.03721949]
[1765554195247,3.22216017,3103.6,3102.1,10.26084219]
[1765554195443,0.02256791,3104.1,3102.1,10.26084219]
[1765554195444,3.35423987,3104.3,3102.2,0.4855]
[1765554195896,0.001,3104.5,3102.6,7.08876412]
[1765554196074,0.001,3104.5,3103.2,7.08876412]
[1765554196274,0.001,3104.5,3102.2,1.06597529]
[1765554196275,0.05490211,3106.3,3102.2,1.06597529]
[1765554196276,10.34741897,3106.8,3104.4,0.1813]
[1765554196474,17.1771712,3106.7,3104.4,0.1813]
[1765554196679,14.637835,3106.5,3104.5,10.25339183]
[1765554196995,3.593772,3106.3,3104.5,7.03226122]
[1765554197195,0.3593772,3106.2,3104.6,0.4855]
[1765554197397,2.01936,3106.4,3104.5,3.81113061]
[1765554197583,2.01936,3106.4,3103.7,0.1813]
[1765554197584,18.403641,3106.3,3103.7,0.1813]
[1765554197766,18.403641,3106.3,3103.8,0.59]
[1765554197767,0.405504,3105.6,3103.8,0.59]
[1765554197971,0.58047529,3105.3,3103.8,0.59]
[1765554198265,0.0323342,3105.3,3104.4,3.2211879]
[1765554198491,2.3283,3105.9,3104.4,6.44242227]
[1765554198696,2.3283,3105.9,3103.9,0.4855]
[1765554198697,3.21969852,3105.9,3104.5,0.59]
[1765554198875,3.285968,3105.8,3104.5,0.59]
[1765554199176,3.285968,3105.8,3103.9,3.22175327]
[1765554199177,13.00113812,3105.6,3103.9,3.22175327]
[1765554199365,12.842766,3105.4,3104.1,0.59]
[1765554199568,0.58047529,3105.8,3104.1,0.59]
[1765554199569,0.58047529,3105.6,3104.1,0.59]
[1765554199798,1.03787529,3105.8,3104.1,0.59]
[1765554199968,13.184572,3106.4,3104.2,0.4704]
[1765554200176,0.1329,3107.1,3105.1,7.08876412]
[1765554200509,0.0323342,3107.0,3104.2,8.13963941]
[1765554200678,0.58047529,3106.6,3104.3,13.47535256]
[1765554200877,14.006483,3106.8,3104.4,1.04047529]
[1765554201191,13.351211,3106.6,3104.5,0.59]
[1765554201392,1.39931452,3106.5,3104.5,1.05]
[1765554201707,3.21854308,3107.0,3104.6,7.54876412]
[1765554201904,6.43562762,3107.7,3104.6,0.46]
[1765554202122,3.21781381,3107.7,3105.2,0.98597929]
[1765554202411,3.21682613,3108.7,3104.7,0.46]
[1765554202412,0.1414,3108.8,3106.4,0.405504]
[1765554202564,3.21688219,3108.6,3106.5,0.59]
[1765554202914,0.05,3109.4,3106.5,0.59]
[1765554202915,0.4657,3109.5,3106.6,0.405504]
[1765554203210,7.08876412,3108.5,3106.7,0.59]
[1765554203428,15.912347,3107.9,3106.2,0.59]
[1765554203611,0.62187529,3107.8,3106.2,0.59]
[1765554203825,4.106245,3106.2,3103.7,0.46]
[1765554203996,7.08876412,3105.8,3104.0,0.59]
[1765554204190,11.380786,3105.5,3104.2,3.22135665]
[1765554204392,11.380786,3105.5,3104.0,3.81161486]
[1765554204393,24.891178,3105.6,3104.0,0.59]
[1765554204628,6.44018676,3105.5,3104.1,6.44309138]
[1765554204793,2.81444,3105.3,3104.1,6.44309138]
[1765554204988,0.92546268,3105.3,3104.0,0.59]
[1765554205312,1.02597529,3105.7,3104.0,0.59]
[1765554205313,3.21984634,3105.8,3104.0,0.59]
[1765554205314,8.579405,3106.7,3104.1,0.46]
[1765554205489,3.21874597,3106.8,3104.4,0.405504]
[1765554205688,3.21874597,3106.8,3104.3,0.03221338]
[1765554205689,7.147542,3106.7,3104.3,0.03221338]
[1765554205900,9.65627991,3106.8,3104.4,0.46]
[1765554205901,26.568655,3106.3,3104.4,0.46]
[1765554206105,13.059487,3106.1,3104.4,0.46]
[1765554206299,11.487827,3106.1,3104.4,0.46]
[1765554206499,7.206567,3106.1,3104.4,0.46]
[1765554206702,6.88465002,3106.0,3104.5,0.589]
[1765554206913,10.886133,3105.9,3104.5,0.589]
[1765554207114,5.072622,3105.7,3104.5,0.589]
[1765554207624,0.0323342,3105.8,3104.5,0.589]
[1765554207821,3.21957501,3106.0,3104.5,0.589]
[1765554208022,0.1339,3106.4,3104.6,0.589]
[1765554208209,10.596496,3106.6,3104.7,0.6419]
[1765554208410,0.001,3106.9,3104.8,0.405504]
[1765554208610,0.001,3106.9,3105.2,16.5075264]
[1765554208828,0.001,3106.9,3105.3,0.46]
[1765554209112,0.001,3106.9,3105.4,0.589]
[1765554209488,0.001,3106.9,3105.5,0.46]
[1765554209693,2.316194,3106.8,3105.5,0.46]
[1765554209916,2.316194,3106.8,3105.2,9.66121344]
[1765554209917,0.0323342,3106.7,3105.6,0.589]
[1765554210234,2.125,3106.8,3105.6,0.589]
[1765554210235,3.781254,3106.8,3105.6,0.589]
[1765554210389,3.781254,3106.8,3105.2,3.22040448]
[1765554210390,0.58047529,3106.4,3105.2,3.22040448]
[1765554210596,8.859376,3106.1,3105.3,0.589]
[1765554210814,4.617511,3106.1,3105.3,0.589]
[1765554211015,0.58047529,3106.0,3104.1,0.46]
[1765554211345,0.58047529,3106.0,3103.3,0.589]
[1765554211346,14.10453,3104.8,3103.3,0.589]
[1765554211541,14.10453,3104.8,3102.7,0.48256791]
[1765554211542,20.13032329,3104.4,3102.7,3.24553951]
[1765554211710,0.58047529,3104.0,3102.7,3.24553951]
[1765554211906,30.0,3103.9,3102.7,0.02256791]
[1765554212106,6.43873542,3106.2,3103.1,7.08703618]
[1765554212329,7.540017,3105.7,3103.2,1.7514357]
[1765554212535,3.21957501,3106.0,3103.7,9.66588264]
[1765554212736,0.4657,3106.1,3103.7,9.66588264]
[1765554212737,3.68517731,3106.1,3103.8,0.589]
[1765554212908,3.301064,3106.0,3103.8,1.049]
[1765554213103,0.1339,3106.4,3104.1,7.08703618]
[1765554213303,0.4657,3106.8,3104.1,7.08703618]
[1765554213304,9.158868,3106.8,3104.2,0.6126897]
[1765554213619,6.32110159,3106.8,3104.2,1.0726897]
[1765554213815,3.41925,3106.6,3104.3,1.049]
[1765554214038,0.98597929,3106.5,3104.4,0.46]
[1765554214234,0.98597929,3106.5,3103.7,12.88784352]
[1765554214235,0.58047529,3106.1,3104.5,0.589]
[1765554214565,3.8187672,3106.4,3104.7,9.66276933]
[1765554214711,2.001821,3106.3,3104.7,9.66276933]
[1765554215041,0.0323342,3106.2,3104.7,6.62374622]
[1765554215205,0.20341552,3106.1,3104.7,6.88084622]
[1765554215405,3.35307752,3106.4,3104.7,6.88084622]
[1765554215406,3.728084,3106.3,3104.7,10.28366933]
[1765554215650,3.108084,3106.3,3104.7,10.28366933]
[1765554215852,3.108084,3106.3,3104.7,7.06274622]
[1765554216154,0.1339,3106.4,3104.7,10.28366933]
[1765554216316,7.594563,3106.3,3104.7,10.74366933]
[1765554216515,0.001,3107.2,3105.0,16.10305955]
[1765554216751,0.001,3107.2,3105.0,12.88244764]
[1765554216956,0.001,3107.2,3105.1,1.049]
[1765554217248,0.001,3107.2,3105.5,7.08703618]
[1765554217451,0.001,3107.2,3105.2,0.46]
[1765554217657,0.001,3107.2,3105.3,0.589]
[1765554217861,0.001,3107.2,3105.6,0.58047529]
[1765554218228,0.001,3107.2,3103.7,1.68803181]
[1765554218229,0.001,3107.2,3105.7,0.46]
[1765554218445,0.001,3107.2,3105.7,1.049]
[1765554218767,0.001,3107.2,3105.9,0.58047529]
[1765554218966,0.001,3107.2,3106.0,8.75497488]
[1765554219171,0.001,3107.2,3106.0,9.21497488]
[1765554219344,0.001,3107.2,3105.8,16.0989117]
[1765554219345,0.001,3107.2,3106.1,1.049]
[1765554219662,0.001,3107.2,3106.1,0.46]
[1765554219841,0.001,3107.2,3106.2,0.589]
[1765554220269,0.001,3107.2,3106.3,0.46]
[1765554220754,0.001,3107.2,3106.4,9.65748132]
[1765554221158,0.001,3107.2,3106.5,0.46]
[1765554221758,0.001,3107.2,3106.6,0.589]
[1765554221960,0.001,3107.2,3106.7,0.589]
[1765554222361,8.10370197,3109.3,3107.1,0.1819]
[1765554222574,2.170691,3109.2,3107.2,0.46]
[1765554222879,2.170691,3109.2,3107.3,6.43645608]
[1765554222880,4.931374,3109.0,3107.3,6.43645608]
[1765554223050,13.403537,3108.8,3107.4,0.589]
[1765554223251,0.1544,3108.4,3107.4,0.589]
[1765554223456,0.001,3108.2,3107.4,0.589]
[1765554223853,0.001,3108.2,3107.5,0.46]
[1765554224174,0.001,3108.5,3107.6,0.405504]
[1765554224377,0.001,3108.5,3107.6,0.85415402]
[1765554224595,0.001,3108.5,3107.7,1.049]
[1765554224791,0.001,3108.5,3107.8,12.87084108]
[1765554224941,0.001,3108.5,3108.0,7.08703618]
[1765554225144,0.001,3108.5,3108.1,0.98597929]
[1765554225347,0.001,3110.4,3108.1,0.865504]
[1765554225545,0.001,3110.4,3107.9,0.58047529]
[1765554225546,0.001,3110.4,3108.6,0.405504]
[1765554225759,0.001,3110.4,3108.9,7.08703618]
[1765554225958,0.001,3110.4,3109.0,0.70870362]
[1765554226160,0.001,3110.4,3109.0,0.46]
[1765554226470,0.001,3110.4,3109.1,1.62947529]
[1765554226665,0.001,3110.4,3109.3,12.86463188]
[1765554226973,0.001,3110.4,3109.3,9.64847391]
[1765554227596,0.001,3110.4,3109.4,0.1819]
[1765554227952,0.001,3110.4,3109.3,10.10847391]
[1765554228148,0.001,3110.4,3109.1,3.21627447]
[1765554228403,2.89183429,3110.2,3108.2,0.1819]
[1765554228560,14.156619,3109.9,3108.3,0.588]
[1765554228747,3.946475,3109.7,3108.3,0.588]
[1765554229079,3.21564087,3109.8,3108.4,6.43417834]
[1765554229382,0.33605343,3110.1,3107.8,0.1819]
[1765554229383,9.857743,3109.6,3107.8,0.1819]
[1765554229568,0.58047529,3109.3,3108.2,0.588]
[1765554229876,2.035846,3109.1,3108.2,0.588]
[1765554230085,6.555826,3109.2,3108.2,0.588]
[1765554230258,2.230198,3109.2,3108.2,0.588]
[1765554230579,2.230198,3109.2,3107.6,0.46]
[1765554230580,14.467072,3109.0,3107.6,3.217899]
[1765554230747,0.4669,3109.1,3107.7,0.588]
[1765554230748,18.136091,3108.7,3107.7,0.588]
[1765554230953,6.030475,3108.5,3107.7,0.588]
[1765554231274,4.125924,3108.6,3107.7,0.588]
[1765554231476,6.5467242,3108.5,3107.7,0.588]
[1765554231786,9.283595,3108.4,3107.7,0.588]
[1765554231985,8.059701,3108.4,3107.7,0.588]
[1765554232152,3.201398,3108.4,3107.7,0.588]
[1765554232478,0.4669,3108.4,3107.7,0.588]
[1765554232682,1.3551819,3108.3,3107.7,0.588]
[1765554232979,3.21729618,3108.2,3107.7,0.588]
[1765554233681,0.1544,3108.3,3107.7,0.588]
[1765554233984,3.37159267,3108.3,3107.7,0.588]
[1765554234147,0.0323342,3108.8,3107.7,3.80580923]
[1765554234148,6.43335048,3108.8,3107.7,3.80580923]
[1765554234349,6.43303915,3109.0,3107.7,7.02362304]
[1765554234681,6.43303915,3109.0,3104.1,0.1827]
[1765554234682,0.58047529,3106.9,3104.1,0.1827]
[1765554234885,7.08703618,3106.5,3104.4,7.03046874]
[1765554235186,12.87539832,3106.7,3104.4,7.03046874]
[1765554235187,30.0,3106.6,3104.5,0.0322113]
[1765554235352,30.0,3106.6,3104.4,10.25170311]
[1765554235353,30.0,3106.4,3104.4,7.03046874]
[1765554235552,28.345628,3106.2,3104.4,7.03046874]
[1765554235891,7.109982,3106.2,3104.4,7.03046874]
[1765554236084,0.4669,3106.2,3104.4,7.03046874]
[1765554236296,30.0,3105.9,3104.4,7.03046874]
[1765554236591,0.1355,3105.8,3104.4,7.03046874]
[1765554236764,5.899956,3105.6,3103.8,0.1827]
[1765554236965,2.658677,3105.6,3104.2,6.44288382]
[1765554237166,2.680747,3105.6,3104.2,6.44288382]
[1765554237558,2.680747,3105.6,3104.2,3.22144191]
[1765554237765,18.608894,3105.4,3104.2,3.22144191]
[1765554238066,0.4669,3105.5,3103.8,0.588]
[1765554238067,30.0,3105.2,3103.8,0.588]
[1765554238271,4.051903,3105.2,3103.8,0.588]
[1765554238462,2.399881,3105.2,3103.9,3.22167519]
[1765554238656,8.373744,3105.0,3103.8,0.588]
[1765554238861,8.373744,3105.0,3103.9,3.22175327]
[1765554238862,3.2206182,3105.0,3103.9,3.22175327]
[1765554239058,3.54268002,3105.0,3103.9,3.22175327]
[1765554239493,3.54268002,3105.0,3103.9,6.44350654]
[1765554239786,6.57507349,3105.8,3104.0,0.4967]
[1765554239990,0.1355,3105.8,3104.0,0.4967]
[1765554240191,16.25597458,3106.1,3104.1,0.1827]
[1765554240367,30.0,3105.9,3104.1,0.1827]
[1765554240566,30.0,3105.9,3104.1,0.6794]
[1765554240781,0.58047529,3105.5,3104.1,6.44300487]
[1765554240990,9.68177,3105.5,3104.2,0.588]
[1765554241190,6.437716,3105.4,3104.2,0.588]
[1765554241390,0.58047529,3105.1,3103.4,0.002]
[1765554241598,16.405737,3104.8,3103.4,0.002]
[1765554241799,17.205329,3104.5,3103.4,0.002]
[1765554242005,0.58047529,3104.2,3103.4,0.002]
[1765554242173,2.34155859,3104.4,3103.4,0.002]
[1765554242174,0.58047529,3103.7,3103.4,0.002]
[1765554242377,5.852332,3103.6,3103.4,0.002]
[1765554242575,11.110466,3104.3,3103.4,0.002]
[1765554242872,0.4669,3104.4,3103.4,0.002]
[1765554243180,3.103038,3105.6,3103.5,1.0847]
[1765554243380,3.103038,3105.6,3103.6,0.4967]
[1765554243381,11.168524,3105.5,3103.6,0.4967]
[1765554244084,4.161708,3105.5,3103.6,0.4967]
[1765554244282,0.4669,3105.4,3103.6,0.4967]
[1765554244494,6.744115,3105.3,3103.7,0.588]
[1765554244710,2.098818,3105.2,3103.7,0.588]
[1765554244876,3.22030077,3105.3,3103.8,10.16227121]
[1765554245071,3.58902085,3105.3,3103.8,10.16227121]